Cogmind - Beta 11.1 @@@ ROGUE MODE // 2022.05.08 @ 13:33:56 Player: JackNine Result: Destroyed by as-46997 with Assembled Blade Performance ------------- Evolutions (0) 0 Regions Visited (2) 400 Robots Destroyed (17) 85 Value Destroyed (488) 488 Prototype IDs (0) 0 Alien Tech Used (0) 0 Bonus (0) 0 TOTAL SCORE: 973 Bonus ------- None Cogmind --------- Core Integrity 0/250 Matter 285/300 Energy 93/100 System Corruption 0% Temperature Cool (19) Movement Treading (480) Ox4 Location -10/Mines Parts ------- > --- POWER (1) -------- (None) > --- PROPULSION (2) --- Light Treads > --- UTILITY (2) ------ Huge Storage Unit > --- WEAPON (2) ------- Autogun Autogun > --- INVENTORY (25) --- Ion Engine Wheel Wheel Compact Wheel Combat Airjet Improved Heat Sink Structural Scanner Light Armor Plating Light Armor Plating Light Armor Plating EM Pulse Gun Medium Laser Medium Laser Small Laser Particle Gun Assault Rifle Assault Rifle Assault Rifle Assault Rifle Assault Rifle Autogun EMP Blaster EMP Blaster Mining Laser Peak State ------------ > --- POWER ------------ Ion Engine > --- PROPULSION ------- Light Treads Compact Wheel > --- UTILITY ---------- Huge Storage Unit Light Armor Plating > --- WEAPON ----------- Particle Gun Autogun > --- INVENTORY -------- Ion Engine Wheel Wheel Wheel Compact Wheel Improved Heat Sink Improved Heat Sink Structural Scanner Light Armor Plating Light Armor Plating Light Armor Plating EM Pulse Gun Medium Laser Medium Laser Small Laser Assault Rifle Assault Rifle Assault Rifle Assault Rifle Assault Rifle Autogun Autogun Autogun EMP Blaster EMP Blaster [Rating: 12] Favorites ----------- Power Ion Engine Engine Ion Engine Propulsion Light Treads Treads Light Treads Wheel Wheel Utility Huge Storage Unit Device Structural Scanner Storage Huge Storage Unit Protection Light Armor Plating Weapon Assault Rifle Energy Gun Medium Laser Ballistic Gun Assault Rifle Build | -11 -10 -10 ------- Run | Scr Mat Min Slots Evolved . | . . . Power . | . . . Propulsion . | . . . Utility . | . . . Weapon . | . . . Parts Attached 25 | 6 17 2 Power 2 | 1 1 . Engine 2 | 1 1 . Core . | . . . Reactor . | . . . Propulsion 7 | 2 4 1 Treads 2 | 1 1 . Leg . | . . . Wheel 5 | 1 3 1 Hover . | . . . Flight . | . . . Utility 7 | 1 6 . Device 1 | . 1 . Storage 4 | 1 3 . Processor . | . . . Hackware . | . . . Protection 2 | . 2 . Artifact . | . . . Weapon 9 | 2 6 1 Energy Gun 3 | 1 2 . Energy Cannon . | . . . Ballistic Gun 6 | 1 4 1 Ballistic Cannon . | . . . Launcher . | . . . Special Weapon . | . . . Impact Weapon . | . . . Slashing Weapon . | . . . Piercing Weapon . | . . . Special Melee Weapon . | . . . Unidentified Prototypes . | . . . Parts Lost 5 | . 2 3 Power 1 | . . 1 Propulsion 2 | . 2 . Utility 1 | . . 1 Weapon 1 | . . 1 Highest Loss Streak 3 | . 1 3 To Critical Strikes . | . . . Average Slot Usage (%) 93 | . 92 99 Engine 13 | . 14 13 Treads 14 | . 14 14 Wheel 14 | . 14 14 Device 1 | . 1 . Storage 14 | . 14 14 Protection 6 | . 5 14 Energy Gun 9 | . 10 . Ballistic Gun 18 | . 17 28 Naked Turns . | . . . Heaviest Build 94 | 13 94 94 Greatest Support 16 | 10 16 16 Greatest Overweight (x) 9 | 1 9 9 Average Overweight (x) 4 | . 4 6 Largest Inventory Capacity 25 | 8 25 25 Average Capacity 20 | 7 20 25 Most Carried 25 | 4 25 25 Average Carried 14 | 2 12 24 Final Capacity 25 | 8 25 25 Final Carried 25 | 4 25 24 Class Distribution -------------------- 100% | Mutant Dominant Class ---------------- Mutant | -10/Materials Mutant | -10/Mines Resources | -11 -10 -10 ----------- Run | Scr Mat Min Matter Collected 684 | 234 366 84 Remotely . | . . . Salvage Created 797 | . 744 53 Parts 40 | . 36 4 Haulers Intercepted . | . . . Recyclers Shooed 3 | . 3 . Parts Field Recycled . | . . . Retrieved Matter . | . . . Parts Self-Destructed . | . . . Prevented . | . . . Kills | -11 -10 -10 ------- Run | Scr Mat Min Combat Hostiles Destroyed 11 | . 10 1 Guns 11 | . 10 1 Classes Destroyed 4 | . 3 1 Recycler 4 | . 4 . Watcher 2 | . 2 . Grunt 10 | . 10 . Demolisher 1 | . . 1 Best Kill Streak 4 | . 4 1 Combat Bots Only 3 | . 3 1 Max Kills in Single Turn 1 | . 1 1 Gunslinging . | . . . Exploded . | . . . Melee . | . . . Uniques/NPCs Destroyed . | . . . Combat | -11 -10 -10 -------- Run | Scr Mat Min Damage Taken 1148 | . 580 568 Core 281 | . 100 181 Absorbed by Shields . | . . . Regen/Repaired (Parts) 58 | . 58 . Core Remaining (%) 100 | 100 . . Volleys Fired 58 | . 50 8 Largest 2 | . 2 2 Hottest 85 | . 85 46 Shots Fired 116 | . 100 16 Gun 116 | . 100 16 Cannon . | . . . Launcher . | . . . Special . | . . . Kinetic 86 | . 70 16 Thermal 30 | . 30 . Explosive . | . . . Electromagnetic . | . . . Robot Hit Streak 9 | . 9 5 Robot Miss Streak 3 | . 3 3 Penetration Max . | . . . Secondary Targets 1 | . 1 . Max Gunslinging Chain 1 | . 1 . Shots Hit Robots 75 | . 64 11 Core Hits 35 | . 31 4 Critical Kills . | . . . Critical Parts Destroyed . | . . . Critical Strikes 1 | . 1 . Burn 1 | . 1 . Melee Attacks . | . . . Impact . | . . . Slashing . | . . . Piercing . | . . . Sneak Attacks . | . . . Combat Hostiles . | . . . Follow-up Attacks . | . . . Damage Inflicted 996 | . 825 171 Guns 996 | . 825 171 Cannons . | . . . Explosions . | . . . Melee . | . . . Ramming . | . . . Kinetic 764 | . 593 171 Thermal 232 | . 232 . Explosive . | . . . Electromagnetic . | . . . Impact . | . . . Slashing . | . . . Piercing . | . . . Highest Corruption . | . . . Average Corruption . | . . . Corruption Purged . | . . . Corruption Blocked . | . . . Overload Shots . | . . . Overflow Damage . | . . . Projectiles . | . . . Explosions . | . . . Melee . | . . . Knockbacks . | . . . Impact . | . . . Kinetic . | . . . Secondary . | . . . Self-Inflicted Damage . | . . . Shots . | . . . Rammed . | . . . Targets Rammed . | . . . Kicked . | . . . Crushed . | . . . Highest Temperature 115 | . 115 33 Average Temperature 29 | . 31 17 Received Heat Transfer 405 | . 345 60 Siege Activations . | . . . Robots Corrupted . | . . . Combat Hostiles . | . . . Parts Fried . | . . . Impact Corruptions . | . . . Robots Melted . | . . . Combat Hostiles . | . . . Parts Melted 1 | . 1 . Heat Transferred 740 | . 740 . Parts Sabotaged . | . . . Parts Stolen . | . . . Parts Stripped . | . . . Power Chain Reactions . | . . . Missiles Intercepted . | . . . Alert | -11 -10 -10 ------- Run | Scr Mat Min Peak Influence 193 | . 193 48 Initial 27 | . . 27 Average 77 | . 89 26 Maximum Alert Level . | . . . Low Security (%) 100 | 100 100 100 Level 1 . | . . . Level 2 . | . . . Level 3 . | . . . Level 4 . | . . . Level 5 . | . . . High Security . | . . . Max Security . | . . . Squads Dispatched 3 | . 3 . Investigation 3 | . 3 . Extermination . | . . . Reinforcement . | . . . Assault . | . . . Garrison . | . . . Intercept . | . . . Searches Triggered . | . . . Construction Impeded . | . . . Haulers Reinforced . | . . . Active Scanning Responses . | . . . Cargo Convoy Interrupts . | . . . Stealth | -11 -10 -10 --------- Run | Scr Mat Min Distress Signals 1 | . 1 . Communications Jammed . | . . . Distress Signals . | . . . Times Spotted 32 | . 17 15 Peak Tracking Total 10 | . 5 10 Tactical Retreats 2 | . 1 1 Traps | -11 -10 -10 ------- Run | Scr Mat Min Traps Triggered 1 | . 1 . Indirectly . | . . . Trap Hack Attempts . | . . . Triggered . | . . . Disarmed . | . . . Reprogrammed . | . . . Reused . | . . . Traps Extracted . | . . . Installed . | . . . Triggered . | . . . Machines | -11 -10 -10 ---------- Run | Scr Mat Min Machines Disabled . | . . . Max in Single Turn . | . . . Machines Sabotaged . | . . . Garrisons Compromised . | . . . Overloaded Fab Kills . | . . . Hacking | -11 -10 -10 --------- Run | Scr Mat Min Machines Accessed 11 | . 11 . Terminals 8 | . 8 . Fabricators . | . . . Repair Stations 1 | . 1 . Recycling Units 2 | . 2 . Scanalyzers . | . . . Garrison Access . | . . . Total Hacks 27 | . 27 . Successful 14 | . 14 . Failed 12 | . 12 . Catastrophic 1 | . 1 . Database Lockouts 1 | . 1 . Manual 12 | . 12 . Terminals 21 | . 21 . Fabricators . | . . . Repair Stations 4 | . 4 . Recycling Units 2 | . 2 . Scanalyzers . | . . . Garrison Access . | . . . Terminal Hacks 7 | . 7 . Record 1 | . 1 . Robot Analysis 2 | . 2 . Branch Access Points 1 | . 1 . Locate Traps 2 | . 2 . Zone Layout 1 | . 1 . Fabricator Hacks . | . . . Repair Station Hacks 2 | . 2 . Scan Component 1 | . 1 . Repair 1 | . 1 . Recycling Unit Hacks . | . . . Scanalyzer . | . . . Garrison Access Hacks . | . . . Unauthorized Hacks 5 | . 5 . Terminals 3 | . 3 . Track 1 | . 1 . Botnet 2 | . 2 . Fabricators . | . . . Repair Stations . | . . . Recycling Units 2 | . 2 . Tunnel 2 | . 2 . Scanalyzers . | . . . Garrison Access . | . . . Data Cores Recovered . | . . . Used . | . . . Hacking Detections 8 | . 8 . Full Trace Events 1 | . 1 . Feedback Events . | . . . Feedback Blocked . | . . . Robot Schematics Acquired . | . . . Robots Built . | . . . Authchips . | . . . Time . | . . . Total Robot Build Rating . | . . . Part Schematics Acquired . | . . . Parts Built . | . . . Authchips . | . . . Time . | . . . Total Part Build Rating . | . . . Parts Repaired 1 | . 1 . Time 26 | . 26 . Parts Recycled . | . . . Recycled Matter . | . . . Retrieved Matter . | . . . Retrieved Components . | . . . Parts Scanalyzed . | . . . Part Schematics Acquired . | . . . Parts Damaged . | . . . Bothacking | -11 -10 -10 ------------ Run | Scr Mat Min Used RIF Installer . | . . . Robots Hacked . | . . . Non-combat . | . . . Combat . | . . . Robot Hacks Applied . | . . . Relay Couplers Released . | . . . Fabnet Peak Effective % . | . . . Robots Rewired . | . . . Allies Hacked . | . . . Hacks Repelled . | . . . Allies | -11 -10 -10 -------- Run | Scr Mat Min Total Allies 1 | . . 1 Largest Group 1 | . . 1 Highest-Rated Group 31 | . . 31 Highest-Rated Ally 31 | . . 31 Total Orders . | . . . Ally Attacks 2 | . . 2 Total Damage 20 | . . 20 Kills . | . . . Allies Corrupted . | . . . Allies Melted . | . . . Intel | -11 -10 -10 ------- Run | Scr Mat Min Robot Analysis Total 2 | . 2 . Derelict Logs Recovered . | . . . Drone Launches . | . . . Drone Recoveries . | . . . Exploration | -11 -10 -10 ------------- Run | Scr Mat Min Turns Passed 1471 | 53 1210 208 Spaces Moved 776 | 45 638 93 Core 2 | 2 . . Treads . | . . . Legs . | . . . Wheels 774 | 43 638 93 Hover . | . . . Flight . | . . . Fastest Speed 50 | 50 95 175 Average Speed 148 | 89 145 191 Slowest Speed 215 | 95 215 215 Overloaded Moves . | . . . Propulsion Burnouts . | . . . Robots Hopped . | . . . Cave-ins Triggered . | . . . Exploration Rate (%) 39 | 3 95 19 Regions Visited 2 Branch Regions 1 Pre-discovered Areas 2 | . 2 . Known Exits Taken 1 | . 1 . Unknown Exits Taken 1 | 1 . . Scrap Searched . | . . . Spaces Dug . | . . . Terrain Destroyed . | . . . Melee . | . . . Projectile . | . . . AOE . | . . . Terrain Rammed . | . . . Walls Destroyed . | . . . Machines Disabled . | . . . Actions | -11 -10 -10 --------- Run | Scr Mat Min Total 984 | 54 819 111 Wait 77 | . 75 2 Move 774 | 44 637 93 Hop . | . . . Pick Up 33 | 4 26 3 Fast Attach 13 | 6 7 . Attach 4 | . 2 2 Detach 4 | . 4 . Swap 8 | . 8 . Drop 13 | . 10 3 Fire 58 | . 50 8 Melee . | . . . Ram . | . . . Kick . | . . . Crush . | . . . Escape Stasis . | . . . Rewire . | . . . Trap . | . . . Miscellaneous . | . . . Route ------- -11/Scrapyard -10/Materials (discovered 4 exits: [*Mat x3] / *Min) -10/Mines (discovered 1 exit: [*Mat]) History --------- Turn | Location | Event 30 | -11/Scrapyard | Discovered new exit (range 15) 54 | -11/Scrapyard | Entered Materials 166 | -10/Materials | Central database locked down 309 | -10/Materials | Build established: Mutant 437 | -10/Materials | Discovered new exit (range 12) 630 | -10/Materials | Discovered new exit (range 15) 1005 | -10/Materials | Identified exit to Mines 1044 | -10/Materials | Discovered new exit (range 13) 1245 | -10/Materials | Repaired Lgt. Armor Plating 1264 | -10/Materials | Entered Mines 1313 | -10/Mines | Discovered new exit (range 9) 1325 | -10/Mines | Received a Mining Laser from a helpful Derelict 1418 | -10/Mines | Assembled infested the area 1440 | -10/Mines | Core integrity fell below 50% 1455 | -10/Mines | Core integrity fell below 20% 1472 | -10/Mines | Destroyed by as-46997 with Assembled Blade Last Messages --------------- 01443_ as-98316 destroyed. 01443_ as-11602 destroyed. 01444_ U-05 Engineer builds a Wall. 01448_ The unstable cave ceiling collapses. 01450_ Dropped Imp. Heat Sink. 01453_ The unstable cave ceiling collapses. 01453_ D-53 Grenadier destroyed. 01455_ Acquired 84 matter. 01456_ The unstable cave ceiling collapses. 01459_ Acquired Cmb. Airjet. 01460_ The unstable cave ceiling collapses. 01461_ U-05 Engineer builds a Wall. 01461_ Autogun destroyed. 01462_ The unstable cave ceiling collapses. 01464_ U-05 Engineer destroyed. 01464_ as-42034 sneak attacks. 01464_ U-05 Engineer destroyed. 01468_ Ion Engine destroyed. 01471_ Wheel severed. 01471_ Lgt. Armor Plating destroyed. Map ----- +----------------------------------------------------+ | | | | | | | | | | | | | | | | | | | | | | | | | ????????????????????????????????????? | | ????????????????????????????????????? | | ??????#####????????????????###??##??? | | ?????## ##?#####????????# ## ##?? | | ?????# ### #???????? ??? | | ?????# < ######### ???? | | ?????## #### ?????? | | ??????## ## #???????? | | ???????# ## ###??????? | | ???????# # #??????? | | ???????# ### # ! = ##?????? | | ???????# ###?# # % #?????? | | ??????## ####### # % ##?????? | | ??????# @a!%!a #% #??????? | | ??????# ka |a%* #%%# #??????? | | ??????## ### ## ] # % ?????? | | ???????####?# ### ###### # ###????? | | ????????????# ## #????? #?##??????? | | ???########## #??????#?????????? | | ???# #????????????????? | | ???# ##????????????????? | | ???# ######## #?????????????????? | | ???# ###????## #?????????????????? | | ??## ##????# #????????????????? | | ??# ##???## #???????????????? | | ??# ###### #???????????????? | | ??# t ##???????????????? | | ??# ##????????????????? | | ??## ####### ##?????????????????? | | ???## ##?????? #??????????????????? | | ????####???????? #??????????????????? | | ???????????????? ??????????????????? | | ????????????????? ??????????????????? | | ????????????????? ??????????????????? | | ????????????????????????????????????? | | ????????????????????????????????????? | | ????????????????????????????????????? | | ????????????????????????????????????? | +----------------------------------------------------+ Best States ------------- Heat Dissipation 25 Energy Generation 10 Energy Capacity 250 Matter Stores 300 Matter Capacity 300 Sight Range 16 Terrain Scan Density 10 Armor Coverage 150 Evasion (%) 41 Recoil Reduction 1 Item Schematics ----------------- None Robot Schematics ------------------ None Fabricated ------------ Nothing Alien Tech Used ----------------- None Achievements -------------- None Challenges ------------ None Game ------ Seed DrainedInsulationInverter Manual? 0 Play Time 00:13:13 Cumulative 329.7 hours Start 2022.05.08 @ 13:21:37 End 2022.05.08 @ 13:33:56 Sessions 1 Manual Loads 0 Difficulty Rogue Special Mode None Game No. 154 Rogue 154 Adventurer 0 Explorer 0 Win Type - Total 11 Types 6/0/3/0/0/0/2/0/0 Lore% 83 Gallery% 88 Achievement% 78 Wizard Run 0 Options --------- ASCII 0 Keyboard 1 Movement Numpad Keybinds 0 Fullscreen 2 Font 12/Terminus Map View 83x54 Tactical HUD 1 Map Filters NONE Filters NONE Steam 1 RUN: 0e34f4a8-d908-4a52-8b2d-53c010d7e3b3